[Event "WYCC 2018 G16"]
[Site "Halkidiki"]
[Date "2018.10.28"]
[Round "9"]
[White "Nemcova, Karin"]
[Black "Palma, Maria"]
[Result "1/2-1/2"]
[ECO "B38"]
[WhiteElo "1888"]
[BlackElo "2106"]
[Annotator "NA"]
[PlyCount "125"]
[EventDate "2018.10.20"]
[EventType "swiss"]
[EventCountry "GRE"]
[SourceTitle "playchess.com"]
[Source "ChessBase"]
[SourceQuality "1"]
[TimeControl "40/5400+30:1800+30"]

1. e4 {[%emt 0:00:00]} c5 {[%emt 0:00:00]} 2. Nf3 {[%emt 0:00:00]} g6 {[%emt 0:00:00]} 3. d4 {[%emt 0:00:00]} cxd4 {[%emt 0:00:00]} 4. Nxd4 {[%emt 0:00:00]} Bg7 {[%emt 0:00:00]} 5. c4 {[%emt 0:00:17]} Nc6 {[%emt 0:00:45]} 6. Be3 {[%emt 0:00:10]} Nf6 {[%emt 0:00:28]} 7. Nc3 {[%emt 0:00:09]} O-O {[%emt 0:00:23]} 8. Be2 {[%emt 0:00:52]} d6 {[%emt 0:00:56]} 9. O-O {[%emt 0:01:02]} Bd7 {[%emt 0:02:18]} 10. Rc1 {[%emt 0:01:27]} Nxd4 {[%emt 0:01:45]} 11. Bxd4 {[%emt 0:00:11]} Bc6 {[%emt 0:00:08]} 12. f3 {[%emt 0:00:18]} Nd7 {[%emt 0:07:19]} 13. Be3 {[%emt 0:00:29]} a5 {[%emt 0:10:26]} 14. b3 {[%emt 0:00:17]} Nc5 {[%emt 0:02:34]} 15. Qc2 {[%emt 0:06:52]} Qb6 {[%emt 0:06:52]} 16. Rb1 {[%emt 0:07:08]} Qb4 {[%emt 0:10:05]} 17. Nd5 {[%emt 0:05:24]} Bxd5 {[%emt 0:01:01]} 18. exd5 {[%emt 0:00:30]} Rfc8 {[%emt 0:19:14]} 19. Bd2 {[%emt 0:02:25]} Qb6 {[%emt 0:02:23]} 20. Kh1 {[%emt 0:03:09]} Na6 {[%emt 0:02:31]} 21. Qe4 {[%emt 0:09:17]} Bf6 {[%emt 0:02:45]} 22. f4 {[%emt 0:03:40]} Qc5 {[%emt 0:07:28]} 23. f5 {[%emt 0:10:52]} Qd4 {[%emt 0:10:32]} 24. Qxd4 {[%emt 0:01:04]} Bxd4 {[%emt 0:01:55]} 25. Rbe1 {[%emt 0:09:55]} Nc5 {[%emt 0:00:48]} 26. Bg4 {[%emt 0:06:27]} Rc7 {[%emt 0:00:28]} 27. fxg6 {[%emt 0:00:15]} hxg6 {[%emt 0:00:06]} 28. Rf3 {[%emt 0:01:34]} f5 {[%emt 0:01:57]} 29. Bh3 {[%emt 0:00:34]} Ne4 {[%emt 0:02:59]} 30. Be3 {[%emt 0:02:37]} Bxe3 {[%emt 0:00:19]} 31. Rfxe3 {[%emt 0:00:35]} Kf7 {[%emt 0:02:33]} 32. g4 {[%emt 0:02:53]} Rh8 {[%emt 0:03:13]} 33. gxf5 {[%emt 0:01:14]} g5 {[%emt 0:01:15]} 34. Rxe4 {[%emt 0:02:40]} Rxh3 {[%emt 0:00:06]} 35. Kg2 {[%emt 0:02:09]} Rc3 {[%emt 0:00:44]} 36. R4e3 {[%emt 0:03:24]} Rc2+ {[%emt 0:00:39]} 37. R1e2 {[%emt 0:00:13]} Rxe2+ {[%emt 0:00:27]} 38. Rxe2 {[%emt 0:00:00]} Kf6 {[%emt 0:00:07]} 39. Rf2 {[%emt 0:00:14]} a4 {[%emt 0:00:23]} 40. Kg3 {[%emt 0:00:00]} axb3 {[%emt 0:00:00]} 41. axb3 {[%emt 0:06:07]} b5 {[%emt 0:00:19]} 42. Rf3 {[%emt 0:19:18]} bxc4 {[%emt 0:04:22]} 43. Rc3 {[%emt 0:00:16]} Kxf5 {[%emt 0:01:32]} 44. bxc4 {[%emt 0:00:21]} Rc5 {[%emt 0:06:54]} 45. Rc1 {[%emt 0:03:04]} e5 {[%emt 0:11:15]} 46. dxe6 {[%emt 0:00:58]} Kxe6 {[%emt 0:00:08]} 47. Kg4 {[%emt 0:05:45]} Kf6 {[%emt 0:00:21]} 48. h4 {[%emt 0:03:47]} gxh4 {[%emt 0:06:44]} 49. Kxh4 {[%emt 0:00:38]} Rc6 {[%emt 0:00:39]} 50. Kg4 {[%emt 0:05:52]} Ke5 {[%emt 0:00:10]} 51. Kf3 {[%emt 0:00:35]} Kd4 {[%emt 0:00:07]} 52. Ke2 {[%emt 0:00:17]} Rxc4 {[%emt 0:01:33]} 53. Rh1 {[%emt 0:00:36]} Kc3 {[%emt 0:02:47]} 54. Rc1+ {[%emt 0:02:30]} Kb4 {[%emt 0:01:08]} 55. Rb1+ {[%emt 0:00:06]} Kc3 {[%emt 0:00:36]} 56. Rc1+ {[%emt 0:00:11]} Kb3 {[%emt 0:00:39]} 57. Rd1 {[%emt 0:01:04]} Re4+ {[%emt 0:00:31]} 58. Kd3 {[%emt 0:00:05]} Rh4 {[%emt 0:00:25]} 59. Rb1+ {[%emt 0:00:06]} Ka4 {[%emt 0:00:30]} 60. Rb6 {[%emt 0:00:47]} Rh1 {[%emt 0:00:30]} 61. Kd2 {[%emt 0:00:59]} Rh6 {[%emt 0:00:08]} 62. Kd3 {[%emt 0:00:34]} Ka5 {[%emt 0:00:06]} 63. Rb8 {[%emt 0:00:07]} 1/2-1/2

[Event "WYCC 2018 G16"]
[Site "Halkidiki"]
[Date "2018.10.28"]
[Round "9"]
[White "Moerwald, Magdalena"]
[Black "Golsta, Ramona"]
[Result "0-1"]
[ECO "B35"]
[WhiteElo "1875"]
[BlackElo "1681"]
[Annotator "NA"]
[PlyCount "138"]
[EventDate "2018.10.20"]
[EventType "swiss"]
[EventCountry "GRE"]
[SourceTitle "playchess.com"]
[Source "ChessBase"]
[SourceQuality "1"]
[TimeControl "40/5400+30:1800+30"]

1. e4 {[%emt 0:00:00]} c5 {[%emt 0:00:00]} 2. Nf3 {[%emt 0:00:00]} g6 {[%emt 0:00:16]} 3. d4 {[%emt 0:00:00]} cxd4 {[%emt 0:00:32]} 4. Nxd4 {[%emt 0:00:08]} Bg7 {[%emt 0:01:25]} 5. Nc3 {[%emt 0:00:17]} Nc6 {[%emt 0:03:21]} 6. Be3 {[%emt 0:00:30]} Nf6 {[%emt 0:00:43]} 7. Bc4 {[%emt 0:00:36]} O-O {[%emt 0:03:17]} 8. Bb3 {[%emt 0:00:21]} a6 {[%emt 0:01:19]} 9. f3 {[%emt 0:03:22]} Qc7 {[%emt 0:08:03]} 10. Qd2 {[%emt 0:05:00]} b5 {[%emt 0:03:39]} 11. O-O-O {[%emt 0:05:09]} Na5 {[%emt 0:01:14]} 12. Nd5 {[%emt 0:10:59]} Nxd5 {[%emt 0:04:34]} 13. Bxd5 {[%emt 0:01:46]} Bb7 {[%emt 0:01:40]} 14. Bb3 {[%emt 0:12:09]} Rfc8 {[%emt 0:04:49]} 15. Kb1 {[%emt 0:04:26]} d5 {[%emt 0:16:40]} 16. exd5 {[%emt 0:11:11]} Nc4 {[%emt 0:00:42]} 17. Bxc4 {[%emt 0:04:39]} Qxc4 {[%emt 0:01:19]} 18. Qd3 {[%emt 0:07:21]} Qxd5 {[%emt 0:01:49]} 19. Nb3 {[%emt 0:02:19]} Qc6 {[%emt 0:05:29]} 20. Na5 {[%emt 0:03:41]} Qc7 {[%emt 0:00:36]} 21. Nxb7 {[%emt 0:00:36]} Qxb7 {[%emt 0:00:01]} 22. Rd2 {[%emt 0:02:44]} a5 {[%emt 0:01:30]} 23. Rhd1 {[%emt 0:00:58]} e6 {[%emt 0:03:33]} 24. Qe2 {[%emt 0:05:32]} a4 {[%emt 0:02:22]} 25. Rd7 {[%emt 0:00:58]} Qa6 {[%emt 0:03:01]} 26. a3 {[%emt 0:01:39]} Qa5 {[%emt 0:06:42]} 27. Bd2 {[%emt 0:02:00]} Qb6 {[%emt 0:01:08]} 28. Bb4 {[%emt 0:01:28]} Bf8 {[%emt 0:01:07]} 29. Bxf8 {[%emt 0:04:51]} Rxf8 {[%emt 0:00:52]} 30. Qd2 {[%emt 0:01:16]} Qc5 {[%emt 0:00:51]} 31. Qd4 {[%emt 0:01:07]} Rac8 {[%emt 0:04:42]} 32. Qxc5 {[%emt 0:03:02]} Rxc5 {[%emt 0:00:24]} 33. Rb7 {[%emt 0:00:13]} Rfc8 {[%emt 0:01:26]} 34. c3 {[%emt 0:00:44]} R8c7 {[%emt 0:00:53]} 35. Rd8+ {[%emt 0:00:43]} Kg7 {[%emt 0:01:36]} 36. Rbb8 {[%emt 0:00:37]} Kf6 {[%emt 0:02:41]} 37. Rd4 {[%emt 0:00:59]} Rc8 {[%emt 0:01:24]} 38. Rb7 {[%emt 0:00:21]} R8c7 {[%emt 0:00:16]} 39. Rb6 {[%emt 0:00:14]} R7c6 {[%emt 0:00:19]} 40. Rb8 {[%emt 0:00:00]} Rc8 {[%emt 0:00:00]} 41. Rxc8 {[%emt 0:08:13]} Rxc8 {[%emt 0:00:59]} 42. Rb4 {[%emt 0:00:30]} Rc5 {[%emt 0:00:28]} 43. Kc2 {[%emt 0:00:55]} Ke5 {[%emt 0:03:54]} 44. c4 {[%emt 0:08:35]} Kd4 {[%emt 0:09:50]} 45. Rxb5 {[%emt 0:00:52]} Rxc4+ {[%emt 0:01:59]} 46. Kd2 {[%emt 0:00:18]} f6 {[%emt 0:02:45]} 47. g4 {[%emt 0:03:05]} Rc5 {[%emt 0:05:50]} 48. Rb4+ {[%emt 0:02:30]} Rc4 {[%emt 0:02:01]} 49. Rb7 {[%emt 0:02:32]} h5 {[%emt 0:00:57]} 50. gxh5 {[%emt 0:00:35]} gxh5 {[%emt 0:00:02]} 51. Rb6 {[%emt 0:01:55]} Kd5 {[%emt 0:04:29]} 52. Kd3 {[%emt 0:03:27]} Rh4 {[%emt 0:02:05]} 53. Ra6 {[%emt 0:01:15]} Rxh2 {[%emt 0:01:10]} 54. Rxa4 {[%emt 0:01:38]} Rxb2 {[%emt 0:00:36]} 55. Ra5+ {[%emt 0:00:00]} Kd6 {[%emt 0:00:00]} 56. Ra6+ {[%emt 0:00:55]} Ke5 {[%emt 0:01:22]} 57. a4 {[%emt 0:02:15]} h4 {[%emt 0:01:06]} 58. Ke3 {[%emt 0:01:39]} Kf5 {[%emt 0:01:45]} 59. a5 {[%emt 0:01:06]} h3 {[%emt 0:01:06]} 60. Ra8 {[%emt 0:00:10]} h2 {[%emt 0:00:20]} 61. Rh8 {[%emt 0:00:08]} Ra2 {[%emt 0:00:25]} 62. a6 {[%emt 0:00:40]} Ke5 {[%emt 0:01:21]} 63. Rh5+ {[%emt 0:01:29]} f5 {[%emt 0:00:53]} 64. f4+ {[%emt 0:00:18]} Kd5 {[%emt 0:00:14]} 65. Kf3 {[%emt 0:00:50]} Rxa6 {[%emt 0:00:16]} 66. Rxh2 {[%emt 0:00:24]} Ra3+ {[%emt 0:00:05]} 67. Kg2 {[%emt 0:00:14]} Ra2+ {[%emt 0:00:11]} 68. Kg3 {[%emt 0:00:04]} Rxh2 {[%emt 0:00:08]} 69. Kxh2 {[%emt 0:00:03] Ke5} Ke4 {[%emt 0:00:08]} 0-1

[Event "WYCC 2018 G16"]
[Site "Halkidiki"]
[Date "2018.10.28"]
[Round "9"]
[White "Nayberg, Simona"]
[Black "Simkunaite, Gabija"]
[Result "0-1"]
[ECO "B13"]
[WhiteElo "1857"]
[BlackElo "1650"]
[Annotator "NA"]
[PlyCount "76"]
[EventDate "2018.10.20"]
[EventType "swiss"]
[EventCountry "GRE"]
[SourceTitle "playchess.com"]
[Source "ChessBase"]
[SourceQuality "1"]
[TimeControl "40/5400+30:1800+30"]

1. e4 {[%emt 0:00:00]} c6 2. d4 d5 3. exd5 cxd5 4. Bd3 Nf6 {[%emt 0:02:23]} 5. c3 {[%emt 0:03:00]} Nc6 {[%emt 0:01:16]} 6. Bf4 {[%emt 0:00:17]} e6 {[%emt 0:01:31]} 7. Nf3 {[%emt 0:01:18]} Bd6 {[%emt 0:03:11]} 8. Bxd6 {[%emt 0:02:19]} Qxd6 {[%emt 0:00:09]} 9. O-O {[%emt 0:00:30]} O-O {[%emt 0:00:32]} 10. Qe2 {[%emt 0:02:07]} Nd7 {[%emt 0:09:51]} 11. Re1 {[%emt 0:07:06]} b6 {[%emt 0:08:49]} 12. Ne5 {[%emt 0:11:38]} Ncxe5 {[%emt 0:08:42]} 13. dxe5 {[%emt 0:00:15]} Qe7 {[%emt 0:00:12]} 14. Qh5 {[%emt 0:03:10]} g6 {[%emt 0:03:02]} 15. Qh6 {[%emt 0:02:32]} f6 {[%emt 0:05:11]} 16. exf6 {[%emt 0:01:50]} Nxf6 {[%emt 0:01:03]} 17. Qg5 {[%emt 0:03:21]} Qc5 {[%emt 0:08:38]} 18. Re3 {[%emt 0:10:00]} d4 {[%emt 0:09:56]} 19. Re5 {[%emt 0:25:02]} Qd6 {[%emt 0:02:03]} 20. Nd2 {[%emt 0:00:58]} dxc3 {[%emt 0:03:32]} 21. Ne4 {[%emt 0:00:58]} cxb2 {[%emt 0:04:31]} 22. Re1 {[%emt 0:03:31]} Qxd3 {[%emt 0:01:22]} 23. Nxf6+ {[%emt 0:00:35]} Rxf6 {[%emt 0:02:44]} 24. Qxf6 {[%emt 0:04:14]} b1=Q {[%emt 0:00:07]} 25. Rxe6 {[%emt 0:02:53]} Qxe1+ {[%emt 0:00:49]} 26. Rxe1 {[%emt 0:00:01]} Bf5 {[%emt 0:01:16]} 27. h4 {[%emt 0:02:41]} Rf8 {[%emt 0:00:48]} 28. Qe7 {[%emt 0:01:45]} Qd2 {[%emt 0:03:39]} 29. Re3 {[%emt 0:01:29]} Qxa2 {[%emt 0:01:32]} 30. Qc7 {[%emt 0:04:04]} Be6 {[%emt 0:03:01]} 31. f3 {[%emt 0:02:35]} Qc4 {[%emt 0:02:00]} 32. Qe7 {[%emt 0:00:35]} Qc1+ {[%emt 0:00:06]} 33. Kf2 {[%emt 0:00:19]} Qd2+ 34. Re2 {[%emt 0:00:11]} Qd4+ {[%emt 0:01:06]} 35. Ke1 {[%emt 0:00:46]} Bf7 {[%emt 0:00:27]} 36. Qg5 {[%emt 0:02:03]} Rc8 {[%emt 0:01:36]} 37. h5 {[%emt 0:01:07]} Qg1+ {[%emt 0:00:04]} 38. Kd2 {[%emt 0:00:18]} Qc1+ {[%emt 0:00:05]} 0-1

[Event "WYCC 2018 G16"]
[Site "Halkidiki"]
[Date "2018.10.28"]
[Round "9"]
[White "Kvendseth, Thyra"]
[Black "Cramling Bellon, Anna"]
[Result "0-1"]
[ECO "A46"]
[WhiteElo "1854"]
[BlackElo "2025"]
[Annotator "NA"]
[PlyCount "112"]
[EventDate "2018.10.20"]
[EventType "swiss"]
[EventCountry "GRE"]
[SourceTitle "playchess.com"]
[Source "ChessBase"]
[SourceQuality "1"]
[TimeControl "40/5400+30:1800+30"]

1. d4 {[%emt 0:00:00]} Nf6 {[%emt 0:00:00]} 2. Nf3 {[%emt 0:00:00]} d5 {[%emt 0:00:00]} 3. g3 {[%emt 0:00:00]} e6 {[%emt 0:01:40]} 4. Bg2 {[%emt 0:00:00]} c5 {[%emt 0:05:35]} 5. O-O {[%emt 0:06:19]} Nc6 {[%emt 0:00:26]} 6. b3 {[%emt 0:08:58]} cxd4 {[%emt 0:05:40]} 7. Nxd4 {[%emt 0:00:27]} Bc5 {[%emt 0:01:06]} 8. Nxc6 {[%emt 0:03:20]} bxc6 {[%emt 0:00:07]} 9. c4 {[%emt 0:00:13]} Bd7 {[%emt 0:46:45]} 10. Bb2 {[%emt 0:02:47]} h5 {[%emt 0:02:25]} 11. h4 {[%emt 0:11:32]} Qb6 {[%emt 0:16:02]} 12. cxd5 {[%emt 0:16:22]} cxd5 {[%emt 0:03:26]} 13. Nc3 {[%emt 0:06:48]} Ng4 {[%emt 0:01:01]} 14. Qe1 {[%emt 0:01:21]} f5 {[%emt 0:08:40]} 15. Bc1 {[%emt 0:12:22]} O-O {[%emt 0:01:32]} 16. Bg5 {[%emt 0:05:59]} Rac8 {[%emt 0:01:51]} 17. Rc1 {[%emt 0:03:18]} Ba3 {[%emt 0:00:57]} 18. Rd1 {[%emt 0:01:12]} d4 {[%emt 0:00:46]} 19. Nb1 {[%emt 0:00:40]} Bb4 {[%emt 0:00:11]} 20. Bd2 {[%emt 0:00:12]} Bd6 {[%emt 0:00:55]} 21. Ba5 {[%emt 0:00:48]} Qc5 {[%emt 0:00:22]} 22. b4 {[%emt 0:04:01]} Qe5 {[%emt 0:00:07]} 23. Qd2 {[%emt 0:00:20]} Bb5 {[%emt 0:00:42]} 24. Qxd4 {[%emt 0:01:56]} Qxd4 {[%emt 0:00:13]} 25. Rxd4 {[%emt 0:00:01]} Be5 {[%emt 0:00:31]} 26. Rd2 {[%emt 0:00:13]} f4 {[%emt 0:01:05]} 27. Na3 {[%emt 0:01:57]} Bc3 {[%emt 0:00:01]} 28. Rc2 {[%emt 0:02:08]} Ba4 {[%emt 0:00:07]} 29. Bb7 {[%emt 0:00:17]} Bxc2 {[%emt 0:00:56]} 30. Bxc8 {[%emt 0:00:03]} Rxc8 {[%emt 0:00:17]} 31. Nxc2 {[%emt 0:00:08]} Bb2 {[%emt 0:01:12]} 32. Ne1 {[%emt 0:00:18]} fxg3 {[%emt 0:00:18]} 33. fxg3 {[%emt 0:01:44]} Bd4+ {[%emt 0:00:46]} 34. Kh1 {[%emt 0:00:42]} Rc1 {[%emt 0:00:34]} 35. b5 {[%emt 0:01:07]} Ne3 {[%emt 0:00:24]} 36. Rf4 {[%emt 0:00:57]} e5 {[%emt 0:00:30]} 37. Rf3 {[%emt 0:00:35]} Nc2 {[%emt 0:00:42]} 38. Rf1 {[%emt 0:00:09]} Bb6 {[%emt 0:00:37]} 39. Bd2 {[%emt 0:00:33]} Rd1 {[%emt 0:00:04]} 40. Bc3 {[%emt 0:00:00]} Bd4 {[%emt 0:00:00]} 41. Ba5 {[%emt 0:02:23]} Bb6 {[%emt 0:04:38]} 42. Bc3 {[%emt 0:00:38]} Ne3 {[%emt 0:00:17]} 43. Rf3 {[%emt 0:12:33]} Nd5 {[%emt 0:02:04]} 44. Kh2 {[%emt 0:02:00]} Nxc3 {[%emt 0:05:09]} 45. Rxc3 {[%emt 0:00:08]} Rxe1 {[%emt 0:00:07]} 46. Rc2 {[%emt 0:00:07]} Kf7 {[%emt 0:02:09]} 47. Kg2 {[%emt 0:00:22]} e4 {[%emt 0:01:02]} 48. a4 {[%emt 0:01:28]} Rg1+ {[%emt 0:05:38]} 49. Kh2 {[%emt 0:00:16]} Ra1 {[%emt 0:00:15]} 50. Rc4 {[%emt 0:00:45]} e3 {[%emt 0:00:07]} 51. Kg2 {[%emt 0:00:09]} Ke6 {[%emt 0:02:14]} 52. g4 {[%emt 0:01:11]} Kd5 {[%emt 0:03:11]} 53. Rf4 {[%emt 0:00:26]} hxg4 {[%emt 0:00:47]} 54. Rxg4 {[%emt 0:00:16]} Bd4 {[%emt 0:00:09]} 55. Rg5+ {[%emt 0:01:21]} Kc4 {[%emt 0:01:16]} 56. Kf3 {[%emt 0:00:34]} Rxa4 {[%emt 0:02:13]} 0-1

[Event "WYCC 2018 G16"]
[Site "Halkidiki"]
[Date "2018.10.28"]
[Round "9"]
[White "Nguyen, Vu Thu Hien"]
[Black "Miroshnik, Ekaterina"]
[Result "1/2-1/2"]
[ECO "D37"]
[WhiteElo "1841"]
[BlackElo "2023"]
[Annotator "NA RC"]
[PlyCount "58"]
[EventDate "2018.10.20"]
[EventType "swiss"]
[EventCountry "GRE"]
[SourceTitle "playchess.com"]
[Source "ChessBase"]
[SourceQuality "1"]
[TimeControl "40/5400+30:1800+30"]

1. d4 {[%emt 0:00:00]} Nf6 {[%emt 0:00:00]} 2. Nf3 {[%emt 0:00:00]} e6 {[%emt 0:00:00]} 3. c4 {[%emt 0:00:00]} d5 {[%emt 0:00:14]} 4. Nc3 {[%emt 0:00:00]} Be7 {[%emt 0:00:23]} 5. cxd5 {[%emt 0:00:10]} exd5 {[%emt 0:00:04]} 6. Bg5 {[%emt 0:00:05]} c6 {[%emt 0:00:59]} 7. e3 {[%emt 0:00:08]} Bf5 {[%emt 0:00:15]} 8. Bd3 {[%emt 0:00:36]} Bxd3 {[%emt 0:00:06]} 9. Qxd3 {[%emt 0:00:04]} Nbd7 {[%emt 0:00:13]} 10. O-O {[%emt 0:00:10]} O-O {[%emt 0:00:04]} 11. Rab1 {[%emt 0:00:14]} a5 {[%emt 0:06:50]} 12. a3 {[%emt 0:01:35]} Ne4 {[%emt 0:04:02]} 13. Bxe7 {[%emt 0:00:20]} Qxe7 {[%emt 0:00:06]} 14. b4 {[%emt 0:03:56]} axb4 {[%emt 0:06:15]} 15. axb4 {[%emt 0:00:02]} Nb6 {[%emt 0:11:35]} 16. Rb3 {[%emt 0:13:38]} Rfc8 {[%emt 0:16:59]} 17. h3 {[%emt 0:05:11]} Ra7 {[%emt 0:08:13]} 18. Rfb1 {[%emt 0:00:44]} Qe6 {[%emt 0:05:00]} 19. Qe2 {[%emt 0:10:31]} Nc4 {[%emt 0:08:52]} 20. Nxe4 {[%emt 0:00:40]} Qxe4 {[%emt 0:02:22]} 21. b5 {[%emt 0:04:06]} cxb5 {[%emt 0:10:58]} 22. Rxb5 {[%emt 0:00:29]} b6 {[%emt 0:00:40]} 23. Rc1 {[%emt 0:07:32]} Ra5 {[%emt 0:09:04]} 24. Rxa5 {[%emt 0:02:52]} bxa5 {[%emt 0:00:05]} 25. Ne5 {[%emt 0:00:09]} a4 {[%emt 0:03:33]} 26. Qa2 {[%emt 0:11:03]} Ra8 {[%emt 0:03:33]} 27. Nxc4 {[%emt 0:00:08]} dxc4 {[%emt 0:00:03]} 28. Rxc4 {[%emt 0:00:32]} Qe6 {[%emt 0:01:49]} 29. d5 {[%emt 0:00:34]} Qd7 {[%emt 0:00:27]} 1/2-1/2

[Event "WYCC 2018 G16"]
[Site "Halkidiki"]
[Date "2018.10.28"]
[Round "9"]
[White "Hoesley, Aria"]
[Black "Sankova, Stella"]
[Result "1/2-1/2"]
[ECO "B54"]
[WhiteElo "1831"]
[BlackElo "2051"]
[Annotator "NA"]
[PlyCount "84"]
[EventDate "2018.10.20"]
[EventType "swiss"]
[EventCountry "GRE"]
[SourceTitle "playchess.com"]
[Source "ChessBase"]
[SourceQuality "1"]
[TimeControl "40/5400+30:1800+30"]

1. e4 {[%emt 0:00:00]} c5 {[%emt 0:00:00]} 2. Nf3 {[%emt 0:00:00]} d6 {[%emt 0:00:00]} 3. d4 {[%emt 0:00:00]} cxd4 {[%emt 0:00:00]} 4. Nxd4 {[%emt 0:00:19]} Nf6 {[%emt 0:00:00]} 5. f3 {[%emt 0:00:39]} e5 {[%emt 0:01:38]} 6. Nb3 {[%emt 0:00:52]} d5 {[%emt 0:07:37]} 7. Bg5 {[%emt 0:00:40]} Be6 {[%emt 0:02:13]} 8. N1d2 {[%emt 0:12:58]} Nc6 {[%emt 0:03:26]} 9. exd5 {[%emt 0:13:39]} Bxd5 {[%emt 0:00:28]} 10. Qe2 {[%emt 0:00:17]} Qc7 {[%emt 0:13:08]} 11. c3 {[%emt 0:07:54]} Be7 {[%emt 0:04:02]} 12. O-O-O {[%emt 0:04:55]} a5 {[%emt 0:13:06]} 13. Bxf6 {[%emt 0:05:04]} gxf6 {[%emt 0:00:28]} 14. Qb5 {[%emt 0:01:10]} Be6 {[%emt 0:04:03]} 15. Bc4 {[%emt 0:05:01]} Bf5 {[%emt 0:03:08]} 16. g4 {[%emt 0:04:07]} Bg6 {[%emt 0:02:12]} 17. Bd5 {[%emt 0:08:18]} a4 {[%emt 0:04:27]} 18. Nc5 {[%emt 0:06:24]} Ra5 {[%emt 0:02:10]} 19. Bxc6+ {[%emt 0:00:47]} bxc6 {[%emt 0:00:55]} 20. Na6 {[%emt 0:00:33]} cxb5 {[%emt 0:02:29]} 21. Nxc7+ {[%emt 0:00:02]} Kf8 {[%emt 0:01:14]} 22. Ne4 {[%emt 0:04:37]} h5 {[%emt 0:07:03]} 23. h3 {[%emt 0:02:31]} b4 {[%emt 0:09:55]} 24. cxb4 {[%emt 0:03:11]} Bxb4 {[%emt 0:00:07]} 25. Nd5 {[%emt 0:01:44]} Be7 {[%emt 0:01:24]} 26. Ndc3 {[%emt 0:08:36]} f5 {[%emt 0:05:21]} 27. gxf5 {[%emt 0:02:26]} Bxf5 {[%emt 0:00:01]} 28. Rd5 {[%emt 0:03:44]} Rxd5 {[%emt 0:00:39]} 29. Nxd5 {[%emt 0:00:01]} Rg8 {[%emt 0:02:38]} 30. Nxe7 {[%emt 0:02:14]} Kxe7 {[%emt 0:00:01]} 31. Rh2 {[%emt 0:00:01]} Be6 {[%emt 0:03:16]} 32. a3 {[%emt 0:01:44]} h4 {[%emt 0:05:45]} 33. Kd2 {[%emt 0:00:54]} Rb8 {[%emt 0:01:20]} 34. Ke3 {[%emt 0:00:31]} Rb3+ {[%emt 0:00:21]} 35. Nc3 {[%emt 0:00:01]} f5 {[%emt 0:00:25]} 36. Rg2 {[%emt 0:01:12]} Kf6 {[%emt 0:00:10]} 37. Rh2 {[%emt 0:00:17]} Bd7 {[%emt 0:01:16]} 38. Kd3 {[%emt 0:00:44]} Bc6 {[%emt 0:00:49]} 39. Rf2 {[%emt 0:00:27]} Rb8 {[%emt 0:00:29]} 40. Kc4 {[%emt 0:00:00]} Bd7 {[%emt 0:00:00]} 41. Rg2 {[%emt 0:05:25]} Bc6 {[%emt 0:08:43]} 42. Rf2 {[%emt 0:00:18]} Bd7 {[%emt 0:06:08]} 1/2-1/2

[Event "WYCC 2018 G16"]
[Site "Halkidiki"]
[Date "2018.10.28"]
[Round "9"]
[White "Kalyva, Kyriaki"]
[Black "Zhang, Xiao"]
[Result "0-1"]
[ECO "D26"]
[WhiteElo "1779"]
[BlackElo "1980"]
[Annotator "NA"]
[PlyCount "104"]
[EventDate "2018.10.20"]
[EventType "swiss"]
[EventCountry "GRE"]
[SourceTitle "playchess.com"]
[Source "ChessBase"]
[SourceQuality "1"]
[TimeControl "40/5400+30:1800+30"]

1. d4 {[%emt 0:00:00]} d5 {[%emt 0:00:00]} 2. c4 {[%emt 0:00:00]} dxc4 {[%emt 0:00:00]} 3. e3 {[%emt 0:00:00]} Nf6 {[%emt 0:00:00]} 4. Bxc4 {[%emt 0:00:00]} e6 {[%emt 0:00:00]} 5. Nf3 {[%emt 0:00:00]} c5 {[%emt 0:00:00]} 6. O-O {[%emt 0:00:01]} Nc6 {[%emt 0:00:00]} 7. Qe2 {[%emt 0:00:35]} a6 {[%emt 0:00:00]} 8. Rd1 {[%emt 0:00:10]} b5 {[%emt 0:00:21]} 9. Bd3 {[%emt 0:00:08]} Nb4 {[%emt 0:00:37]} 10. e4 c4 {[%emt 0:07:46]} 11. Bc2 {[%emt 0:08:19]} Nxc2 {[%emt 0:00:41]} 12. Qxc2 {[%emt 0:00:06]} Bb7 {[%emt 0:02:37]} 13. Nc3 {[%emt 0:06:34]} b4 {[%emt 0:07:40]} 14. e5 {[%emt 0:16:21]} bxc3 {[%emt 0:02:12]} 15. exf6 {[%emt 0:00:21]} gxf6 {[%emt 0:05:41]} 16. Qxc3 {[%emt 0:02:06]} Qd5 {[%emt 0:00:26]} 17. Bf4 {[%emt 0:03:36]} h5 {[%emt 0:02:14]} 18. Rac1 {[%emt 0:01:12]} Rc8 {[%emt 0:02:23]} 19. b3 {[%emt 0:03:18]} Ba3 {[%emt 0:07:53]} 20. Rc2 {[%emt 0:04:57]} Qe4 {[%emt 0:05:33]} 21. bxc4 {[%emt 0:13:11]} Bb4 {[%emt 0:06:06]} 22. Qb2 {[%emt 0:03:55]} Qxf4 {[%emt 0:03:41]} 23. Qxb4 {[%emt 0:00:11]} Bxf3 {[%emt 0:03:15]} 24. gxf3 {[%emt 0:00:21]} Qxf3 {[%emt 0:05:59]} 25. Qa4+ {[%emt 0:01:07]} Kf8 {[%emt 0:01:16]} 26. Qb4+ {[%emt 0:02:53]} Kg7 {[%emt 0:00:23]} 27. Qd2 {[%emt 0:09:08]} Rhg8 {[%emt 0:01:11]} 28. Kf1 {[%emt 0:00:13]} Qh1+ {[%emt 0:04:03]} 29. Ke2 {[%emt 0:00:05]} Qxh2 {[%emt 0:01:22]} 30. Rcc1 {[%emt 0:00:11]} Qh4 {[%emt 0:01:03]} 31. Rg1+ {[%emt 0:01:50]} Kh7 {[%emt 0:00:07]} 32. Qd3+ {[%emt 0:00:59]} f5 {[%emt 0:00:24]} 33. Rh1 {[%emt 0:00:57]} Qg4+ {[%emt 0:01:20]} 34. Kd2 {[%emt 0:00:25]} Rcd8 {[%emt 0:02:03]} 35. Kc3 {[%emt 0:02:03]} Kh6 {[%emt 0:02:25]} 36. Rh2 {[%emt 0:03:06]} Rg5 {[%emt 0:04:30]} 37. Rch1 {[%emt 0:01:34]} f4 {[%emt 0:02:49]} 38. Rh4 {[%emt 0:05:11]} Qf5 {[%emt 0:01:24]} 39. Qxf5 {[%emt 0:00:27]} Rxf5 {[%emt 0:00:05]} 40. f3 {[%emt 0:00:00]} Kg6 {[%emt 0:00:00]} 41. Kd3 {[%emt 0:03:37]} f6 {[%emt 0:09:26]} 42. Re1 {[%emt 0:06:16]} Ra5 {[%emt 0:01:49]} 43. Rxe6 {[%emt 0:02:53]} Ra3+ {[%emt 0:00:06]} 44. Kc2 {[%emt 0:05:43]} Rxd4 {[%emt 0:01:00]} 45. c5 {[%emt 0:01:13]} Rxf3 {[%emt 0:01:20]} 46. Rxa6 {[%emt 0:00:43]} Kg5 {[%emt 0:00:26]} 47. Rh1 {[%emt 0:00:17]} Rc4+ {[%emt 0:00:04]} 48. Kd2 {[%emt 0:00:20]} Rxc5 {[%emt 0:00:07]} 49. Ra8 {[%emt 0:01:14]} Kg4 {[%emt 0:00:43]} 50. Rf8 {[%emt 0:01:35]} Rf2+ {[%emt 0:01:16]} 51. Kd1 {[%emt 0:01:46]} Rxa2 {[%emt 0:00:08]} 52. Rg8+ {[%emt 0:00:23]} Rg5 {[%emt 0:00:23]} 0-1